[Event "Summer Prague Open-A 2022"]
[Site "Prague"]
[Date "2022.08.07"]
[Round "4.1"]
[White "Kulhanek, Tomas"]
[Black "Mirzoev, Azer"]
[Result "1/2-1/2"]
[ECO "C54"]
[WhiteElo "2319"]
[BlackElo "2424"]
[Annotator "TA"]
[PlyCount "59"]
[EventDate "2022.08.05"]
[EventType "swiss"]
[EventCountry "CZE"]
[SourceTitle "playchess.com"]
[Source "ChessBase"]
[SourceQuality "1"]
[TimeControl "40/5400+30:1800+30"]

{[%evp 11,59,0,0,0,0,0,0,0,0,0,19,0,11,0,36,21,37,35,15,12,16,13,22,29,47,45,66,61,61,55,49,52,51,62,64,56,56,42,42,39,47,39,65,0,0,0,0,0,0,0]} 1. e4 {[%emt 0:02:06]} e5 {[%emt 0:00:31]} 2. Nf3 {[%emt 0:00:34]} Nc6 {[%emt 0:00:17]} 3. Bc4 {[%emt 0:00:13]} Bc5 {[%emt 0:00:06]} 4. c3 {[%emt 0:00:19]} Nf6 {[%emt 0:00:09]} 5. d4 {[%emt 0:00:08]} exd4 {[%emt 0:00:07]} 6. e5 {[%emt 0:00:16]} d5 $1 {[%emt 0:01:01]} 7. Be2 {[%emt 0:00:22] C54: Giuoco Piano: 4 c3 Nf6, main lines with 5 d4 and 5 d3.} ({Much weaker is} 7. exf6 dxc4 8. fxg7 Rg8 9. cxd4 Bxd4 10. Qe2+ (10. Nxd4 Qxd4 11. Qxd4 Nxd4 $15) 10... Qe7 11. Qxe7+ Kxe7 $17) 7... Ne4 {[%emt 0:00:19][%cal Od4d3] [#] ...d3! is the strong threat.} 8. cxd4 {[%emt 0:00:06]} Bb6 {[%emt 0:00:03] The main line 8...Bb6 scores better than 8...Bb4+.} 9. Nc3 {[%emt 0:00:25]} O-O {[%emt 0:00:19]} 10. O-O {[%emt 0:00:05]} Bf5 {[%emt 0:00:53]} 11. Na4 {[%emt 0:01:04] [#]} h6 $146 {[%emt 0:00:39]} ({Predecessor:} 11... f6 12. a3 fxe5 13. Nxb6 axb6 14. Nxe5 Nxe5 15. dxe5 d4 16. Bc4+ Kh8 17. g4 b5 {0-1 (33) Aronian,L (2785)-Hansen,E (2606) Chess.com INT 2022}) 12. a3 {[%emt 0:01:39]} Bh7 {[%emt 0:00:29]} 13. Be3 {[%emt 0:02:12]} f5 {[%emt 0:04:52]} 14. exf6 {[%emt 0:01:24]} Qxf6 {[%emt 0:00:15]} 15. Nxb6 {[%emt 0:00:37]} axb6 {[%emt 0:00:26]} 16. Rc1 {[%emt 0:00:19]} Kh8 {[%emt 0:03:15]} 17. Bb5 {[%emt 0:07:39] Strongly threatening Bxc6.} Qd6 {[%emt 0:18:58]} 18. Re1 {[%emt 0:10:09]} Ne7 {[%emt 0:11:13]} 19. Ne5 {[%emt 0:01:27]} c6 {[%emt 0:02:14]} 20. Bd3 {[%emt 0:03:09]} Nf5 {[%emt 0:02:29]} 21. f3 {[%emt 0:06:34]} Nxe3 {[%emt 0:07:32]} 22. Rxe3 {[%emt 0:02:47]} Nf6 {[%emt 0:01:22]} 23. Bxh7 {[%emt 0:06:31]} Kxh7 {[%emt 0:00:39]} 24. Qd3+ {[%emt 0:01:03]} Kg8 {[%emt 0:00:06]} 25. Rce1 {[%emt 0:00:23] Hoping for Ng6.} Rae8 {[%emt 0:03:00]} 26. Qg6 {[%emt 0:15:06]} Qc7 {[%emt 0:01:24]} 27. Ng4 {[%emt 0:09:29] 0x0.00198aa4831bdp-1022s more active pieces.} (27. g3 $14) 27... Rxe3 $11 {[%emt 0:06:59] The position is equal.} 28. Rxe3 {[%emt 0:00:17] [#] Black must now prevent Nxh6+.} Nxg4 {[%emt 0:00:22]} 29. Qxg4 {[%emt 0:00:18]} Qf4 {[%emt 0:08:38]} 30. Qxf4 {[%emt 0:01:11] Weighted Error Value: White=0.07 (flawless) /Black=0.06 (flawless)} 1/2-1/2

[Event "Summer Prague Open-A 2022"]
[Site "Prague"]
[Date "2022.08.07"]
[Round "4.2"]
[White "Cernousek, Lukas"]
[Black "Karas, Marek"]
[Result "1-0"]
[ECO "C14"]
[WhiteElo "2429"]
[BlackElo "2286"]
[Annotator "TA"]
[PlyCount "71"]
[EventDate "2022.08.05"]
[EventType "swiss"]
[EventCountry "CZE"]
[SourceTitle "playchess.com"]
[Source "ChessBase"]
[SourceQuality "1"]
[TimeControl "40/5400+30:1800+30"]

{[%evp 16,71,19,6,11,11,10,0,0,15,5,0,0,0,27,23,22,21,35,0,18,12,39,39,84,73,84,11,126,114,109,117,319,311,312,314,317,312,365,341,330,335,342,122,342,0,147,0,312,327,334,318,483,511,570,561,5285,5257]} 1. e4 {[%emt 0:00:03]} e6 {[%emt 0:00:07]} 2. d4 {[%emt 0:00:05]} d5 {[%emt 0:00:02]} 3. Nc3 {[%emt 0:00:06]} Nf6 {[%emt 0:00:07]} 4. Bg5 {[%emt 0:00:11]} Be7 {[%emt 0:00:11]} 5. e5 {[%emt 0:00:04]} Nfd7 {[%emt 0:00:07]} 6. Bxe7 {[%emt 0:00:05]} Qxe7 {[%emt 0:00:07]} 7. f4 {[%emt 0:00:04]} a6 {[%emt 0:00:16]} 8. Nf3 {[%emt 0:00:17]} c5 {[%emt 0:00:06]} 9. Ne2 {[%emt 0:00:38]} Nc6 {[%emt 0:01:27] C14: French: Classical System: 4 Bg5 Be7 main line.} 10. c3 {[%emt 0:00:10]} b5 {[%emt 0:02:27]} 11. dxc5 {[%emt 0:20:53]} Nxc5 {The position is equal.} 12. Ned4 {[%emt 0:00:23]} Nxd4 {[%emt 0:07:23]} 13. Qxd4 {[%emt 0:01:56] [#]} O-O $146 {[%emt 0:04:41]} ({Predecessor:} 13... Bd7 14. Be2 Rc8 15. O-O Na4 16. Qd2 Nc5 17. Bd3 Nxd3 18. Qxd3 Qc5+ 19. Nd4 O-O {1-0 (36) Sidiropoulos,N (1548)-Rompis,D Ptolemaida 2009}) 14. Be2 {[%emt 0:01:31]} Rb8 {[%emt 0:10:00][%cal Ob5b4]} 15. O-O {[%emt 0:02:39]} Bd7 {[%emt 0:04:36]} 16. Rac1 {[%emt 0:09:09]} Rfc8 {[%emt 0:05:13]} 17. Rfd1 {[%emt 0:00:14]} Be8 {[%emt 0:01:42]} 18. Qe3 {[%emt 0:00:54]} Na4 {[%emt 0:08:12]} 19. Rc2 {[%emt 0:07:57]} b4 {[%emt 0:02:40]} 20. Bxa6 {[%emt 0:08:18]} Rc7 {[%emt 0:05:34]} 21. Bf1 {[%emt 0:11:50] White is more active.} (21. Nd4 $16) 21... Rbc8 {[%emt 0:10:26]} (21... Nxc3 $1 $11 {keeps the balance.} 22. bxc3 Ba4) 22. Rdc1 {[%emt 0:04:52]} bxc3 {[%emt 0:08:06]} 23. b3 {[%emt 0:00:16]} ({Weaker is} 23. bxc3 Qa3 $15) 23... Nb2 {[%emt 0:03:01]} (23... Nc5 $16 {might work better.}) 24. Rxc3 $18 {[%emt 0:01:57]} Rxc3 {[%emt 0:03:55]} 25. Rxc3 {[%emt 0:00:02]} Rxc3 {[%emt 0:00:27]} (25... Nd1 $2 26. Rxc8 $1 Nxe3 27. Bb5) 26. Qxc3 {[%emt 0:00:02]} Qa7+ {[%emt 0:00:11]} 27. Nd4 {[%emt 0:11:45]} Qxa2 {[%emt 0:00:08]} 28. Qc8 {[%emt 0:10:45][%cal Rc8e8]} Kf8 {[%emt 0:00:01]} 29. Qc5+ $1 {[%emt 0:00:06]} ({Less strong is} 29. Bb5 Qa1+ 30. Kf2 Nd1+ 31. Kf3 Qc3+ 32. Qxc3 Nxc3 $14) 29... Kg8 {[%emt 0:00:03]} 30. Qc8 {[%emt 0:00:07]} (30. Qe7 $1 $18 {[%cal Re7e8] and the rest is easy.} Qa8 31. f5) 30... Kf8 $16 {[%emt 0:00:07]} 31. Qc5+ $2 $40 {[%emt 0:00:06][%mdl 128] White has some attack.} (31. Bb5 $6 Qa1+ 32. Kf2 Nd1+ 33. Kf3 Qc3+ 34. Qxc3 Nxc3 $14) (31. Qc2 $16) 31... Kg8 $18 {[%emt 0:00:08] [#]} 32. Qe7 $1 {[%emt 0:00:06][%cal Re7e8]} ({Resist} 32. Qc8 Kf8 $18) 32... Qa8 {[%emt 0:00:06] [#]} 33. f5 $1 {[%emt 0:00:34]} exf5 {[%emt 0:01:09]} (33... h6 {was called for.} 34. fxe6 Qc8) 34. Nxf5 {[%emt 0:00:20] White is clearly winning.} Bc6 {[%emt 0:04:03]} 35. e6 {[%emt 0:05:28]} Qe8 {[%emt 0:01:34]} 36. Qg5 {[%emt 0:01:44] Weighted Error Value: White=0.28 (precise) /Black=0.37} 1-0

[Event "Summer Prague Open-A 2022"]
[Site "Prague"]
[Date "2022.08.07"]
[Round "4.3"]
[White "Risting, Eivind Olav"]
[Black "Bruchmann, Stephan"]
[Result "1-0"]
[ECO "D94"]
[WhiteElo "2325"]
[BlackElo "2226"]
[Annotator "RC"]
[PlyCount "59"]
[EventDate "2022.08.05"]
[EventType "swiss"]
[EventCountry "CZE"]
[SourceTitle "playchess.com"]
[Source "ChessBase"]
[SourceQuality "1"]
[TimeControl "40/5400+30:1800+30"]

1. c4 {[%emt 0:00:05]} c6 {[%emt 0:00:40]} 2. Nf3 {[%emt 0:00:28]} d5 {[%emt 0:00:25]} 3. e3 {[%emt 0:00:23]} Nf6 {[%emt 0:00:12]} 4. Nc3 {[%emt 0:00:07]} g6 {[%emt 0:01:21]} 5. d4 {[%emt 0:00:37]} Bg7 {[%emt 0:00:13]} 6. Bd3 {[%emt 0:00:51]} Bg4 {[%emt 0:06:19]} 7. O-O {[%emt 0:15:02]} O-O {[%emt 0:06:53]} 8. h3 {[%emt 0:01:03]} Bxf3 {[%emt 0:00:10]} 9. Qxf3 {[%emt 0:00:04]} Qd6 {[%emt 0:04:49]} 10. Qd1 {[%emt 0:15:25]} e5 {[%emt 0:15:40]} 11. dxe5 {[%emt 0:05:12]} Qxe5 {[%emt 0:00:08]} 12. cxd5 {[%emt 0:04:01]} Nxd5 {[%emt 0:00:26]} 13. Nxd5 {[%emt 0:00:46]} Qxd5 {[%emt 0:02:01]} 14. Qc2 {[%emt 0:01:40]} Nd7 {[%emt 0:03:04]} 15. Bc4 {[%emt 0:15:59]} Qd6 {[%emt 0:04:33]} 16. Rd1 {[%emt 0:03:08]} Qe7 {[%emt 0:00:06]} 17. Bd2 {[%emt 0:00:17]} Nb6 {[%emt 0:00:37]} 18. Be2 {[%emt 0:04:09]} Rfd8 {[%emt 0:01:21]} 19. Be1 {[%emt 0:02:51]} Qe6 {[%emt 0:04:00]} 20. Rxd8+ {[%emt 0:02:38]} Rxd8 {[%emt 0:03:39]} 21. a4 {[%emt 0:00:04]} Nd5 {[%emt 0:02:17]} 22. Rd1 {[%emt 0:01:04]} Re8 {[%emt 0:00:06]} 23. Bc4 {[%emt 0:01:02]} Qe5 {[%emt 0:02:10]} 24. b4 {[%emt 0:04:28]} Nf6 {[%emt 0:03:35]} 25. Bc3 {[%emt 0:01:27]} Qe7 {[%emt 0:00:07]} 26. Qd3 {[%emt 0:02:43]} Nd5 {[%emt 0:01:43]} 27. Bxd5 {[%emt 0:02:55]} cxd5 {[%emt 0:00:08]} 28. Bxg7 {[%emt 0:00:06]} Kxg7 {[%emt 0:00:08]} 29. Qd4+ {[%emt 0:03:21]} Qe5 {[%emt 0:05:15]} 30. Qxa7 {[%emt 0:00:59]} 1-0

[Event "Summer Prague Open-A 2022"]
[Site "Prague"]
[Date "2022.08.07"]
[Round "4.4"]
[White "Mirimanian, Hayk"]
[Black "Schmaltz, Roland"]
[Result "1/2-1/2"]
[ECO "B07"]
[WhiteElo "2228"]
[BlackElo "2466"]
[Annotator "TA"]
[PlyCount "56"]
[EventDate "2022.08.05"]
[EventType "swiss"]
[EventCountry "CZE"]
[SourceTitle "playchess.com"]
[Source "ChessBase"]
[SourceQuality "1"]
[TimeControl "40/5400+30:1800+30"]

{[%evp 14,56,29,8,7,-3,0,0,0,-3,2,-4,0,-17,-3,-8,-2,-8,-4,-8,0,-4,9,9,18,6,14,0,0,0,10,6,31,0,0,0,0,-14,-14,-14,-8,-9,0,0,0]} 1. e4 {[%emt 0:00:03]} d6 {[%emt 0:02:49]} 2. d4 {[%emt 0:00:49]} Nf6 {[%emt 0:00:08]} 3. Nc3 {[%emt 0:02:37]} e5 {[%emt 0:00:05]} 4. dxe5 {[%emt 0:07:03]} dxe5 {[%emt 0:00:48]} 5. Qxd8+ {[%emt 0:00:12]} Kxd8 {[%emt 0:00:06]} 6. Bg5 {[%emt 0:07:57]} Be6 {[%emt 0:00:45]} 7. O-O-O+ {[%emt 0:00:33]} Kc8 {[%emt 0:01:33]} 8. g3 {[%emt 0:07:38]} Bc5 {[%emt 0:03:47] B07: Pirc Defence: Miscellaneous Systems.} 9. f3 {[%emt 0:00:47] Inhibits Ng4.} Nbd7 {[%emt 0:00:58]} 10. Bh3 {[%emt 0:12:13]} Bxh3 {[%emt 0:00:44]} 11. Nxh3 {[%emt 0:00:06][%cal Bg1h3,Bh3f2,Bf2d3][%mdl 32]} h6 {[%emt 0:01:41]} 12. Bxf6 {[%emt 0:02:52]} Nxf6 {[%emt 0:00:13] [#]} 13. Nd5 $146 {[%emt 0:00:32]} ({Predecessor:} 13. Rhf1 c6 14. Nf2 Kc7 15. Nd3 Bd4 16. Na4 Rhe8 17. c3 Be3+ 18. Kc2 a5 19. Rfe1 {½-½ (81) Yasin,H (1959)-Kilic,E (2248) Ordu 2019}) 13... Nd7 {[%emt 0:17:01]} 14. Rhe1 {[%emt 0:04:41]} c6 {[%emt 0:02:04]} 15. Ne3 {[%emt 0:00:09]} Kc7 {[%emt 0:01:20]} 16. Nf2 {[%emt 0:01:02]} Rhe8 {[%emt 0:01:48]} 17. Nd3 {[%emt 0:01:02]} Bf8 {[%emt 0:00:34]} 18. c3 {[%emt 0:00:33]} h5 {[%emt 0:01:13]} 19. Kc2 {[%emt 0:06:55]} g6 {[%emt 0:07:09]} 20. Re2 {[%emt 0:14:29]} b5 {[%emt 0:01:39]} 21. h4 {[%emt 0:08:47]} Rad8 {[%emt 0:03:54]} 22. a4 {[%emt 0:04:04]} a6 {[%emt 0:00:08]} 23. Rh1 {[%emt 0:02:30]} Nc5 {[%emt 0:01:28] The position is equal.} 24. Nxc5 {[%emt 0:00:45]} Bxc5 {[%emt 0:00:07]} 25. axb5 {[%emt 0:00:08]} axb5 {[%emt 0:00:05]} 26. Rd1 {[%emt 0:12:09]} Rxd1 {[%emt 0:00:09]} 27. Nxd1 {[%emt 0:00:07]} Re6 {[%emt 0:00:32]} 28. Nf2 {[%emt 0:00:27]} Bxf2 {[%emt 0:06:10] A balanced but interesting game.  Weighted Error Value: White=0.06 (flawless) /Black=0.06 (flawless)} 1/2-1/2

[Event "Summer Prague Open-A 2022"]
[Site "Prague"]
[Date "2022.08.07"]
[Round "4.5"]
[White "Zanan, Evgeny"]
[Black "Dauth, Benjamin"]
[Result "1-0"]
[ECO "D11"]
[WhiteElo "2521"]
[BlackElo "2243"]
[Annotator "TA"]
[PlyCount "55"]
[EventDate "2022.08.05"]
[EventType "swiss"]
[EventCountry "CZE"]
[SourceTitle "playchess.com"]
[Source "ChessBase"]
[SourceQuality "1"]
[TimeControl "40/5400+30:1800+30"]

{[%evp 15,55,22,48,56,48,50,56,34,37,65,70,43,95,90,230,226,222,230,209,225,277,256,252,243,324,318,348,360,331,349,323,294,351,315,714,697,1305,1277,1179,685,618,373]} 1. d4 {[%emt 0:04:58]} d5 {[%emt 0:01:05]} 2. c4 {[%emt 0:00:05]} c6 {[%emt 0:00:09]} 3. Nf3 {[%emt 0:00:11]} Nf6 {[%emt 0:00:18]} 4. g3 {[%emt 0:00:05]} e6 {[%emt 0:00:28]} 5. Bg2 {[%emt 0:00:13]} Bd6 {[%emt 0:00:35]} 6. O-O {[%emt 0:01:14]} O-O {[%emt 0:00:05]} 7. Nc3 {[%emt 0:02:16]} Nbd7 {[%emt 0:00:23]} 8. Nd2 {[%emt 0:04:52]} Re8 {[%emt 0:04:40]} 9. e4 {[%emt 0:00:46] E01: Catalan: Early deviations.} dxe4 {[%emt 0:00:20]} 10. Ndxe4 {[%emt 0:00:06]} Bf8 {[%emt 0:00:08]} 11. Bf4 {[%emt 0:12:17] White is slightly better.} Nxe4 {[%emt 0:00:25]} 12. Nxe4 {[%emt 0:00:04]} Nf6 {[%emt 0:00:07]} 13. Nc3 {[%emt 0:02:00][%cal Be4c3,Bc3b5,Bb5d6][%mdl 32] White is more active.} Bd6 {[%emt 0:03:11]} (13... Re7 $14) 14. Be5 $16 {[%emt 0:03:38] [#]} c5 $146 {[%emt 0:14:05]} (14... Be7 $16 {might work better.}) ({Predecessor:} 14... Qc7 15. f4 Rd8 16. Qf3 Ne8 17. Rad1 f6 18. c5 Bxe5 19. fxe5 f5 20. Ne4 Qe7 {1-0 (43) Jakovenko,D (2733)-Rydstrom,T (2292) Caleta 2015}) 15. Nb5 $18 {[%emt 0:02:44]} Bb8 {[%emt 0:02:13]} 16. Bxb8 {[%emt 0:05:27]} Rxb8 {[%emt 0:00:06]} 17. dxc5 {[%emt 0:00:07]} a6 {[%emt 0:00:13]} 18. Nd6 {[%emt 0:00:45]} Re7 {[%emt 0:00:31]} 19. b4 {[%emt 0:00:51][%cal Bb2b4,Bb4c5,Bc5c6][%mdl 32]} Rd7 {[%emt 0:01:01]} 20. Qe2 {[%emt 0:03:31]} b6 {[%emt 0:01:22]} 21. Rfd1 {[%emt 0:03:03][%cal Bf1d1,Bd1d2,Bd2d8][%mdl 32]} bxc5 {[%emt 0:00:22]} 22. bxc5 {[%emt 0:00:03]} Qc7 {[%emt 0:00:34]} 23. Qe3 {[%emt 0:01:53]} Kf8 {[%emt 0:02:28]} 24. Rd2 {[%emt 0:05:30]} Ng8 $2 {[%emt 0:07:02] [#]} (24... Re7 25. c6 e5) 25. c6 $1 {[%emt 0:03:55] White is clearly winning.} Rd8 {[%emt 0:02:13]} (25... Re7 26. Rad1) 26. Qc5 {[%emt 0:00:19]} Ne7 {[%emt 0:01:08] [#]} 27. Nb5 $1 {[%emt 0:01:16][%mdl 512]} Rxb5 {[%emt 0:02:22]} 28. Rxd8+ {[%emt 0:00:11] Black did not feel at home in the position after the opening.  Weighted Error Value: White=0.36/Black=0.26 (precise)} 1-0

[Event "Summer Prague Open-A 2022"]
[Site "Prague"]
[Date "2022.08.07"]
[Round "4.6"]
[White "Shehzad, Shazil"]
[Black "Lalic, Bogdan"]
[Result "1/2-1/2"]
[ECO "C00"]
[WhiteElo "2274"]
[BlackElo "2412"]
[Annotator "TA"]
[PlyCount "34"]
[EventDate "2022.08.05"]
[EventType "swiss"]
[EventCountry "CZE"]
[SourceTitle "playchess.com"]
[Source "ChessBase"]
[SourceQuality "1"]
[TimeControl "40/5400+30:1800+30"]

{[%evp 11,34,3,8,-7,-8,-13,-14,-18,10,0,15,10,13,19,31,52,39,0,0,0,67,0,0,18,-27]} 1. e4 {[%emt 0:04:43]} e6 {[%emt 0:04:24]} 2. d3 {[%emt 0:01:28]} c5 {[%emt 0:01:08]} 3. Nf3 {[%emt 0:00:29]} Nc6 {[%emt 0:00:17]} 4. g3 {[%emt 0:00:11]} d5 {[%emt 0:00:47]} 5. Qe2 {[%emt 0:00:14]} Nge7 {[%emt 0:01:50]} 6. Bg2 {[%emt 0:00:46]} g6 {[%emt 0:00:17]} 7. h4 {[%emt 0:00:53] C00: French: Unusual White 2nd moves.} h6 {[%emt 0:00:09]} 8. O-O {[%emt 0:02:36]} Bg7 {[%emt 0:00:08]} 9. Re1 {[%emt 0:01:49]} b6 {[%emt 0:01:42]} 10. e5 {[%emt 0:02:43]} a5 {[%emt 0:01:42]} 11. a4 {[%emt 0:07:31]} Ba6 {[%emt 0:00:10]} 12. Na3 {[%emt 0:00:44] [#]} Nd4 $146 {[%emt 0:06:59]} ({Predecessor:} 12... Ra7 13. c3 Rd7 14. Bd2 Nc8 15. Bf4 N8a7 16. Qd2 d4 17. c4 Bb7 18. Nb5 Nxb5 19. axb5 {1-0 (94) Shchekachev,A (2375)-Sokolov,A (2605) Moscow 1992}) 13. Nxd4 {[%emt 0:01:16]} cxd4 {[%emt 0:00:06]} 14. Nb5 {[%emt 0:05:39]} Bxb5 {[%emt 0:00:24]} 15. axb5 {[%emt 0:00:02]} Qd7 {[%emt 0:00:17]} (15... Rc8 $11) 16. Qg4 {[%emt 0:05:10]} ({White should try} 16. c4 $1 $14) 16... Rc8 {[%emt 0:06:32]} 17. Qxd4 {[%emt 0:07:15]} Qxb5 {Weighted Error Value: White=0.16 (very precise) /Black=0.16 (very precise)} 1/2-1/2

[Event "Summer Prague Open-A 2022"]
[Site "Prague"]
[Date "2022.08.07"]
[Round "4.7"]
[White "Gloser, David"]
[Black "Lutsko, Artem"]
[Result "1/2-1/2"]
[ECO "B90"]
[WhiteElo "2221"]
[BlackElo "2392"]
[Annotator "TA"]
[PlyCount "113"]
[EventDate "2022.08.05"]
[EventType "swiss"]
[EventCountry "CZE"]
[SourceTitle "playchess.com"]
[Source "ChessBase"]
[SourceQuality "1"]
[TimeControl "40/5400+30:1800+30"]

{[%evp 17,113,10,15,18,27,12,18,23,18,16,27,13,30,15,60,58,55,32,42,42,52,30,31,14,30,0,27,34,40,16,41,23,16,0,63,50,63,0,64,59,60,71,71,67,65,58,81,77,58,49,66,17,20,37,77,76,77,58,137,140,140,131,135,128,191,127,194,102,97,102,90,94,90,88,374,357,258,37,85,78,191,38,50,25,47,0,0,0,0,0,0,0,0,0,0,0,0,7]} 1. e4 {[%emt 0:01:26] Hecht,H} c5 {[%emt 0:00:04]} 2. Nf3 {[%emt 0:00:10]} d6 {[%emt 0:00:04]} 3. d4 {[%emt 0:00:20]} cxd4 {[%emt 0:00:04]} 4. Nxd4 {[%emt 0:00:23]} Nf6 {[%emt 0:00:03]} 5. Nc3 {[%emt 0:00:07]} a6 {[%emt 0:00:03]} 6. Be3 {[%emt 0:00:13]} e5 {[%emt 0:00:04]} 7. Nb3 {[%emt 0:00:05]} Be6 {[%emt 0:00:03]} 8. f3 {[%emt 0:00:11]} h5 {[%emt 0:00:04]} 9. Qd2 {[%emt 0:00:07]} Nbd7 {[%emt 0:00:03]} 10. Nd5 $1 {[%emt 0:00:58] 10.Nd5 is better than 10.0-0-0. B90: Sicilian Najdorf: Unusual White 6th moves, 6 Be3 Ng4 and 6 Be3 e5.} Bxd5 {[%emt 0:00:41]} 11. exd5 {[%emt 0:00:08]} g6 {[%emt 0:00:02]} 12. Be2 {[%emt 0:01:14]} Bg7 {[%emt 0:00:11]} 13. O-O {[%emt 0:01:00]} O-O {[%emt 0:00:06]} 14. Na5 {[%emt 0:02:31]} Qc7 {[%emt 0:01:49]} 15. c4 {[%emt 0:01:04]} b6 {[%emt 0:04:08]} 16. Nc6 {[%emt 0:03:04]} Nb8 {[%emt 0:02:31]} 17. Nxb8 {[%emt 0:02:40]} Rfxb8 {[%emt 0:00:04]} 18. Rac1 {[%emt 0:05:45] [#]} Nd7 $146 {[%emt 0:02:01]} ({Predecessor:} 18... Qd7 19. Bd3 Kh7 20. f4 e4 21. Be2 Qf5 22. h3 b5 23. b3 bxc4 24. bxc4 Rb7 {½-½ (62) Jenni,F (2518)-Hort,V (2543) Basel 2004 CBM 099 [Hecht,H]}) 19. Bd3 {[%emt 0:08:12]} a5 {[%emt 0:07:47]} 20. Kh1 {[%emt 0:06:06]} Nc5 {[%emt 0:01:51]} 21. Bb1 {[%emt 0:00:54]} Re8 {[%emt 0:04:59]} 22. b3 {[%emt 0:07:54]} Qd7 {[%emt 0:15:19]} 23. Rce1 Rec8 24. Bh6 {[%emt 0:03:55]} Re8 {[%emt 0:04:51]} 25. Rg1 {[%emt 0:07:11]} Qd8 {[%emt 0:10:28]} (25... b5 $11) 26. Bg5 {[%emt 0:07:38] A strong pair of Bishops.} Bf6 {[%emt 0:02:18]} 27. Bh6 {[%emt 0:00:13]} (27. Be3 $1 $14) 27... Rb8 {[%emt 0:10:23]} ({Better is} 27... Bg7 $1 $11) 28. g4 $14 {[%emt 0:02:26][%cal Bg2g4,Bg4g5][%mdl 32] Hoping for gxh5.} h4 {[%emt 0:00:03]} 29. Be3 {[%emt 0:02:33]} b5 {[%emt 0:00:14]} 30. g5 {[%emt 0:01:22]} Bg7 {[%emt 0:00:13]} 31. Bxc5 {[%emt 0:07:00]} dxc5 {[%emt 0:00:03]} 32. Bd3 $1 {[%emt 0:00:41]} a4 {[%emt 0:03:31]} 33. Re4 {[%emt 0:01:24]} h3 {[%emt 0:00:06]} 34. Qf2 {[%emt 0:01:53]} (34. cxb5 $14 axb3 35. Bc4) 34... axb3 $11 {[%emt 0:00:30]} 35. axb3 {[%emt 0:00:20]} Qd6 {[%emt 0:00:58]} 36. cxb5 {[%emt 0:01:26]} Qxd5 {[%emt 0:00:20]} 37. Bc4 {[%emt 0:00:14]} Qd6 {[%emt 0:01:08]} ({Black should try} 37... Qd7 $14) 38. Qf1 $16 {[%emt 0:08:42]} (38. Rh4 Red8 $14) 38... Qd7 {[%emt 0:00:51]} 39. Rh4 {[%emt 0:02:04]} Red8 {[%emt 0:05:30][%cal Be8d8,Bd8d3,Bd3f3][%mdl 32]} 40. Qxh3 {[%emt 0:00:53]} (40. Rxh3 $6 Rb6 $14) 40... Qe8 {[%emt 0:02:45]} (40... Qb7 $16 {might work better.}) 41. Qg2 {[%emt 0:32:41]} ({Don't take} 41. Rh7 $6 Rb6 $14) (41. f4 $18) 41... Rxb5 {[%emt 0:32:34]} (41... Rd4 $16 42. Rxd4 exd4) 42. Bxb5 {[%emt 0:02:37]} ({White should play} 42. f4 $1 $18) 42... Qxb5 {[%emt 0:00:02] [#]} 43. Qc2 $1 {[%emt 0:06:25]} Rd3 {[%emt 0:01:23]} 44. Rc4 {[%emt 0:00:00]} Rxf3 {[%emt 0:00:00]} 45. Rxc5 {[%emt 0:00:00]} Qd7 {[%emt 0:00:00][%mdl 8192]} (45... Qb6 $16 {was called for.}) 46. Rc8+ $18 {[%emt 0:00:00]} Kh7 {[%emt 0:00:00]} 47. Rc4 {[%emt 0:00:00]} (47. Qc7 $18 Qd2 48. Qd8 Qxd8 49. Rxd8) 47... Qb7 {[%emt 0:00:00]} (47... Bf8 $14 {deserves consideration.}) 48. Qe4 $16 {[%emt 0:00:00]} Qxb3 {[%emt 0:00:00] [#]} (48... Rxb3 $16 49. Qxb7 Rxb7) 49. Qh4+ $2 {[%emt 0:00:00]} (49. Rb1 $1 $18 Qa3 50. Ra4) 49... Kg8 $14 {[%emt 0:00:00][%cal Of3f4]} 50. Rc8+ {[%emt 0:00:00]} Bf8 {[%emt 0:00:00]} 51. Rxf8+ {[%emt 0:00:00]} Kxf8 {[%emt 0:00:00][%mdl 4096] Endgame KQR-KQR. The position is equal.} 52. Qh8+ {[%emt 0:00:00]} Ke7 {[%emt 0:00:00] ( -> ...Qd5)} 53. Qxe5+ {[%emt 0:00:00]} Qe6 {[%emt 0:00:00]} 54. Qc5+ {[%emt 0:00:00]} Ke8 {[%emt 0:00:00]} 55. Ra1 {[%emt 0:00:00]} Rd3 {[%emt 0:00:00]} 56. Ra8+ {[%emt 0:00:00]} Rd8 {[%emt 0:00:00]} 57. Rxd8+ {[%emt 0:00:00] White really could win this.  Weighted Error Value: White=0.26 (precise) /Black=0.33} 1/2-1/2